Workbook

Sheet 1-неделя
A1: Согласовано: Директор МБОУ "Завод-Ныртинская СОШ им. И.С.Башкирова" ______________ И.И. Шаймиев | L1: Утверждаю: Директор ООО "Сабинский общепит" ______________ А.М.Исламова
F2: ДВУХНЕДЕЛЬНОЕ МЕНЮ ДЛЯ ОБУЧАЮЩИХСЯ МБОУ "Завод-Ныртинская СОШ им. И.С.Башкирова" на 2-е полугодие 2021-2022 учебного года
A3: № рец. | B3: Прием пищи, наименование блюда | F3: Масса порции | H3: Пищевые вещества (г) | K3: Энергетическая ценность (ккал) | L3: Масса продуктов блюда в бруттах, г | M3: Цена | N3: Сумма
H4: Б | I4: Ж | J4: У
A5: 1 | B5: 2 | F5: 3 | H5: 4 | I5: 5 | J5: 6 | K5: 7 | L5: 8 | M5: 9 | N5: 10
B6: 1-я неделя
B7: 1-й день
B8: Завтрак
A9: 384/2013 Сб.рец. | B9: Каша вязкая молочная из рисовой крупы со слив.маслом | F9: 130 | H9: 3.6 | I9: 4.23 | J9: 27.09 | K9: 160.01
B10: Крупа рисовая | L10: 29 | M10: 60 | N10: =L10*M10/1000 -> 1.740
B11: Молоко | L11: 55 | M11: 46 | N11: =L11*M11/1000 -> 2.530
B12: Соль | L12: 1 | M12: 10.3 | N12: 0.010
B13: Сахар-песок | L13: 3 | M13: 60 | N13: 0.180
B14: Масло сливочное | L14: 3 | M14: 500 | N14: 1.500
B15: Итого | N15: =SUM(N10:N14) -> 5.960
A16: 943/2013 Сб.рец. | B16: Чай с медом | F16: 200 | H16: 0.06 | I16: 0 | J16: 6.42 | K16: 26.24
B17: Чай высшего и 1-го сорта | L17: 1 | M17: 555 | N17: =L17*M17/1000 -> 0.555
B18: Мед натуральный | L18: 8 | M18: 393 | N18: =L18*M18/1000 -> 3.144
B19: Итого | N19: =N17+N18 -> 3.699
B20: Хлеб в/с | F20: 40 | H20: 3.04 | I20: 0.32 | J20: 19.68 | K20: 94 | L20: 40 | M20: 62 | N20: =(L20*M20)/1000 -> 2.480
B21: Итого за завтрак: | H21: =H9+H16+H20 -> 6.7 | I21: =I9+I16+I20 -> 4.55 | J21: 53.19 | K21: 280.25 | N21: =N15+N19+N20 -> 12.139
B22: Второй завтрак
A23: 378/2013 Сб.рец. | B23: Каша гречневая рассыпчатая со слив.маслом | F23: 150/6 | H23: 6.49 | I23: 5.68 | J23: 34.76 | K23: 207.51
B24: Крупа гречка | L24: 51 | M24: 115 | N24: =L24*M24/1000 -> 5.865
B25: Масло сливочное | L25: 6 | M25: 500 | N25: =L25*M25/1000 -> 3.000
B26: Соль | L26: 1 | M26: 10.3 | N26: 0.010
B27: Итого | N27: =SUM(N24:N26) -> 8.875
A28: 608/2013 Сб.рец. | B28: Котлеты из говядины | F28: 50 | H28: 8.34 | I28: 9.34 | J28: 8.75 | K28: 146.35
B29: Мясо без костей | L29: 37 | M29: 506 | N29: =L29*M29/1000 -> 18.722
B30: Хлеб пшеничный | L30: 9 | M30: 62 | N30: =L30*M30/1000 -> 0.558
B31: Сухари панировочные | L31: 5 | M31: 78 | N31: 0.390
B32: Масло подсолнечное | L32: 3 | M32: 157 | N32: 0.471
B33: Лук репчатый | L33: 5 | M33: 42 | N33: 0.210
B34: Яйцо куриное | L34: 3 | M34: 300 | N34: 0.900
B35: Соль | L35: 1 | M35: 10.3 | N35: 0.010
B36: Итого | N36: =SUM(N29:N35) -> 21.261
A37: 868/2013 Сб.рец. | B37: Компот из урюка | F37: 200 | H37: 0.72 | I37: 0 | J37: 14.4 | K37: 69.2
B38: Урюк | L38: 8 | M38: 390 | N38: =(L38*M38)/1000 -> 3.120
B39: Сахар-песок | L39: 10 | M39: 60 | N39: =(L39*M39)/1000 -> 0.600
B40: Итого | N40: =N38+N39 -> 3.720
B41: Хлеб р/ж | F41: 35 | H41: 1.15 | I41: 0.42 | J41: 16.76 | K41: 82.95 | L41: 35 | M41: 62 | N41: =(L41*M41)/1000 -> 2.170
B42: Итого за второй завтрак: | H42: =H23+H28+H37+H41 -> 16.7 | I42: =I23+I28+I37+I41 -> 15.44 | J42: 74.67 | K42: 506.01 | N42: =N27+N36+N40+N41 -> 36.027
B43: ИТОГО ЗА 1 ДЕНЬ: | H43: =H21+H42 -> 23.4 | I43: =I21+I42 -> 19.99 | J43: 127.86 | K43: 786.26 | N43: =N21+N42 -> 48.166
B44: 2-й день
B45: Завтрак
A46: 384/2013 Сб.рец. | B46: Каша вязкая молочная из овсяной крупы со слив.маслом | F46: 130 | H46: 5.8 | I46: 5.89 | J46: 27.08 | K46: 184.56
B47: Хлопья овсяные "геркулес" | L47: 32.5 | M47: 50 | N47: =L47*M47/1000 -> 1.625
B48: Молоко | L48: 55 | M48: 46 | N48: =L48*M48/1000 -> 2.530
B49: Сахар-песок | L49: 3 | M49: 60 | N49: 0.180
B50: Масло сливочное | L50: 3 | M50: 500 | N50: 1.500
B51: Соль | L51: 1 | M51: 10.3 | N51: 0.010
B52: Итого | N52: =SUM(N47:N51) -> 5.845
A53: 959/2013 Сб.рец. | B53: Какао с молоком | F53: 200 | H53: 3.52 | I53: 3.59 | J53: 13.12 | K53: 99.07
B54: Какао-порошок | L54: 3 | M54: 605 | N54: =L54*M54/1000 -> 1.815
B55: Молоко | L55: 100 | M55: 46 | N55: =L55*M55/1000 -> 4.6
B56: Сахар-песок | L56: 8 | M56: 60 | N56: 0.48
B57: Итого | N57: =SUM(N54:N56) -> 6.895
B58: Хлеб в/с | F58: 40 | H58: 3.04 | I58: 0.32 | J58: 19.68 | K58: 94 | L58: 40 | M58: 62 | N58: =L58*M58/1000 -> 2.480
B59: Итого за завтрак: | H59: =H46+H53+H58 -> 12.36 | I59: =I46+I53+I58 -> 9.8 | J59: 59.88 | K59: 377.63 | N59: =N52+N57+N58 -> 15.220
B60: Второй завтрак
A61: 299/2013 Сб.рец. | B61: Картофельное пюре со слив.маслом | F61: 150/5 | H61: 3.42 | I61: 5.09 | J61: 22.14 | K61: 148.37
B62: Картофель | L62: 176 | M62: 55 | N62: =L62*M62/1000 -> 9.680
B63: Молоко | L63: 30 | M63: 46 | N63: =L63*M63/1000 -> 1.380
B64: Масло сливочное | L64: 5 | M64: 500 | N64: 2.500
B65: Соль | L65: 1 | M65: 10.3 | N65: 0.010
B66: Итого | N66: =SUM(N62:N65) -> 13.570
A67: 462/2004 Сб.рец. | B67: Тефтели с мясом и рисом | F67: 60 | H67: 8.08 | I67: 14.2 | J67: 7.91 | K67: 191.85
B68: Мясо без костей | L68: 38 | M68: 506 | N68: =L68*M68/1000 -> 19.228
B69: Крупа рисовая | L69: 5 | M69: 60 | N69: =L69*M69/1000 -> 0.300
B70: Лук репчатый | L70: 21 | M70: 42 | N70: 0.882
B71: Масло подсолнечное | L71: 8 | M71: 157 | N71: 1.256
B72: Мука пшеничная | L72: 4 | M72: 40 | N72: 0.160
B73: Соль | L73: 1 | M73: 10.3 | N73: 0.010
B74: Итого | N74: =SUM(N68:N73) -> 21.836
A75: 943/2013 Сб.рец. | B75: Чай с медом | F75: 200 | H75: 0.06 | I75: 0 | J75: 6.42 | K75: 26.24
B76: Чай высшего и 1-го сорта | L76: 1 | M76: 555 | N76: =L76*M76/1000 -> 0.555
B77: Мед натуральный | L77: 8 | M77: 393 | N77: =L77*M77/1000 -> 3.144
B78: Итого | N78: =N76+N77 -> 3.699
B79: Хлеб р/ж | F79: 35 | H79: 1.15 | I79: 0.42 | J79: 16.76 | K79: 82.95 | L79: 35 | M79: 62 | N79: =L79*M79/1000 -> 2.170
B80: Итого за второй завтрак: | H80: =H61+H67+H75+H79 -> 12.71 | I80: =I61+I67+I75+I79 -> 19.71 | J80: =J61+J67+J75+J79 -> 53.23 | K80: =K61+K67+K75+K79 -> 449.41 | N80: =N66+N74+N78+N79 -> 41.276
B81: ИТОГО ЗА 2 ДЕНЬ: | H81: =H59+H80 -> 25.07 | I81: =I59+I80 -> 29.51 | J81: =J59+J80 -> 113.11 | K81: =K59+K80 -> 827.04 | N81: =N59+N80 -> 56.496
B82: 3-й день
B83: Завтрак
A84: 847/2013 Сб.рец. | B84: Фрукты: яблоки | F84: 150 | H84: 0.6 | I84: 0.6 | J84: 14.7 | K84: 70.5 | L84: 150 | M84: 128 | N84: =(L84*M84)/1000 -> 19.200
A85: 384/2013 Сб.рец. | B85: Каша вязкая молочная из пшеничной крупы со слив.маслом | F85: 130 | H85: 5.15 | I85: 4.33 | J85: 27.4 | K85: 171.24
B86: Крупа пшеничная | L86: 32.5 | M86: 57 | N86: =(L86*M86)/1000 -> 1.853
B87: Молоко | L87: 55 | M87: 46 | N87: =(L87*M87)/1000 -> 2.530
B88: Масло сливочное | L88: 3 | M88: 500 | N88: 1.500
B89: Сахар-песок | L89: 3 | M89: 60 | N89: 0.180
B90: Соль | L90: 1 | M90: 10.3 | N90: 0.010
B91: Итого | N91: =SUM(N86:N90) -> 6.073
A92: 943/2013 Сб.рец. | B92: Чай с медом | F92: 200 | H92: 0.06 | I92: 0 | J92: 6.42 | K92: 26.24
B93: Чай высшего и 1-го сорта | L93: 1 | M93: 555 | N93: =L93*M93/1000 -> 0.555
B94: Мед натуральный | L94: 8 | M94: 393 | N94: =L94*M94/1000 -> 3.144
B95: Итого | N95: =N93+N94 -> 3.699
B96: Хлеб в/с | F96: 40 | H96: 3.04 | I96: 0.32 | J96: 19.68 | K96: 94 | L96: 40 | M96: 62 | N96: =(L96*M96)/1000 -> 2.480
B97: Итого за завтрак: | H97: =H84+H85+H92+H96 -> 8.85 | I97: =I84+I85+I92+I96 -> 5.25 | J97: 68.2 | K97: 361.98 | N97: =N84+N91+N95+N96 -> 31.452
B98: Второй завтрак
A99: 182/1994 Сб.рец. | B99: Уха с крупой | F99: 250 | H99: 14.06 | I99: 9.54 | J99: 15.22 | K99: 203.01
B100: Рыба свежая (филе) | L100: 60 | M100: 476 | N100: =L100*M100/1000 -> 28.560
B101: Лук репчатый | L101: 12 | M101: 42 | N101: =L101*M101/1000 -> 0.504
B102: Картофель | L102: 60 | M102: 55 | N102: 3.300
B103: Крупа перловая | L103: 10 | M103: 40 | N103: 0.400
B104: Морковь | L104: 12 | M104: 50 | N104: 0.600
B105: Масло подсолнечное | L105: 5 | M105: 157 | N105: 0.785
B106: Соль | L106: 1 | M106: 10.3 | N106: 0.010
B107: Итого | N107: =SUM(N100:N106) -> 34.159
A108: 943/2013 Сб.рец. | B108: Чай с медом | F108: 200 | H108: 0.06 | I108: 0 | J108: 6.42 | K108: 26.24
B109: Чай высшего и 1-го сорта | L109: 1 | M109: 555 | N109: =L109*M109/1000 -> 0.555
B110: Мед натуральный | L110: 8 | M110: 393 | N110: =L110*M110/1000 -> 3.144
B111: Итого | N111: =N109+N110 -> 3.699
B112: Сухари ванильные | F112: 25 | H112: 2.15 | I112: 2.85 | J112: 16.67 | K112: 101.5 | L112: 25 | M112: 120 | N112: =L112*M112/1000 -> 3
B113: Хлеб р/ж | F113: 35 | H113: 1.15 | I113: 0.42 | J113: 16.76 | K113: 82.95 | L113: 35 | M113: 62 | N113: =(L113*M113)/1000 -> 2.170
B114: Итого за второй затрак: | H114: =H99+H108+H113+H112 -> 17.42 | I114: =I99+I108+I113+I112 -> 12.81 | J114: 55.07 | K114: 413.7 | N114: =N107+N111+N113+N112 -> 43.028
B115: ИТОГО ЗА 3 ДЕНЬ: | H115: =H97+H114 -> 26.27 | I115: =I97+I114 -> 18.06 | J115: =J97+J114 -> 123.27 | K115: =K97+K114 -> 775.68 | N115: =N97+N114 -> 74.480
B116: 4-й день
B117: Завтрак
A118: 469/2013 Сб.рец. | B118: Запеканка из творога | F118: 75 | H118: 15.95 | I118: 8.15 | J118: 13.19 | K118: 189.35
B119: Творог | L119: 70 | M119: 217.8 | N119: =L119*M119/1000 -> 15.246
B120: Крупа манная | L120: 5 | M120: 50 | N120: =L120*M120/1000 -> 0.250
B121: Сахар-песок | L121: 5 | M121: 60 | N121: 0.300
B122: Яйцо куриное | L122: 4 | M122: 300 | N122: 1.200
B123: Масло подсолнечное | L123: 2 | M123: 157 | N123: 0.314
B124: Масло сливочное | L124: 3 | M124: 500 | N124: 1.500
B125: Сухари панировочные | L125: 3 | M125: 78 | N125: 0.234
B126: Итого | N126: =SUM(N119:N125) -> 19.044
A127: 943/2013 Сб.рец. | B127: Чай с медом | F127: 200 | H127: 0.06 | I127: 0 | J127: 6.42 | K127: 26.24
B128: Чай высшего и 1-го сорта | L128: 1 | M128: 555 | N128: =(L128*M128)/1000 -> 0.555
B129: Мед натуральный | L129: 8 | M129: 393 | N129: =(L129*M129)/1000 -> 3.144
B130: Итого | N130: =SUM(N128:N129) -> 3.699
B131: Хлеб в/с | F131: 40 | H131: 3.04 | I131: 0.32 | J131: 19.68 | K131: 94 | L131: 40 | M131: 62 | N131: =(L131*M131)/1000 -> 2.480
B132: Итого за завтрак: | H132: =H118+H127+H131 -> 19.05 | I132: =I118+I127+I131 -> 8.47 | J132: 39.29 | K132: 309.59 | N132: =N126+N130+N131 -> 25.223
B133: Второй завтрак
A134: 34/2016 Сб.рец. | B134: Свекла отварная с маслом растительным | F134: 50/5 | H134: 0.82 | I134: 5.05 | J134: 4.79 | K134: 67.8
B135: Свекла | L135: 68 | M135: 40 | N135: =L135*M135/1000 -> 2.720
B136: Масло подсолнечное | L136: 5 | M136: 157 | N136: =L136*M136/1000 -> 0.785
B137: Итого | N137: =SUM(N135:N136) -> 3.505
A138: 414/2013 Сб.рец. | B138: Макароны отварные со слив.маслом | F138: 150/5 | H138: 5.35 | I138: 4.16 | J138: 37.7 | K138: 213.3
B139: Макароны | L139: 53 | M139: 53 | N139: =L139*M139/1000 -> 2.809
B140: Масло сливочное | L140: 5 | M140: 500 | N140: =L140*M140/1000 -> 2.500
B141: Соль | L141: 1 | M141: 10.3 | N141: 0.010
B142: Итого | N142: =SUM(N139:N141) -> 5.319
A143: 621/2013 Сб.рец. | B143: Биточки из говядины | F143: 50 | H143: 7.67 | I143: 7.14 | J143: 4.79 | K143: 113.36
B144: Мясо без костей | L144: 19 | M144: 506 | N144: =L144*M144/1000 -> 9.614
B145: Мясо индейки | L145: 18 | M145: 506 | N145: =L145*M145/1000 -> 9.108
B146: Лук репчатый | L146: 5 | M146: 42 | N146: 0.210
B147: Масло подсолнечное | L147: 3 | M147: 157 | N147: 0.471
B148: Хлеб пшеничный | L148: 9 | M148: 62 | N148: 0.558
B149: Яйцо куриное | L149: 3 | M149: 300 | N149: 0.900
B150: Соль | L150: 1 | M150: 10.3 | N150: 0.010
B151: Итого | N151: =SUM(N144:N150) -> 20.871
A152: 861/2013 Сб.рец. | B152: Компот из свежих яблок | F152: 200 | H152: 0.07 | I152: 0.07 | J152: 11.67 | K152: 47.99
B153: Яблоки | L153: 17 | M153: 128 | N153: =L153*M153/1000 -> 2.176
B154: Сахар-песок | L154: 10 | M154: 60 | N154: =L154*M154/1000 -> 0.600
B155: Итого | N155: =SUM(N153:N154) -> 2.776
B156: Хлеб р/ж | F156: 35 | H156: 1.15 | I156: 0.42 | J156: 16.76 | K156: 82.95 | L156: 35 | M156: 62 | N156: =(L156*M156)/1000 -> 2.170
B157: Итого за второй завтрак: | H157: =H134+H138+H143+H152+H156 -> 15.06 | I157: =I134+I138+I143+I152+I156 -> 16.84 | J157: 75.71 | K157: 525.4 | N157: =N137+N142+N151+N155+N156 -> 34.642
B158: ИТОГО ЗА 4 ДЕНЬ: | H158: =H132+H157 -> 34.11 | I158: =I132+I157 -> 25.31 | J158: 115 | K158: 834.99 | N158: =N132+N157 -> 59.865
B159: 5-й день
B160: Завтрак
A161: 384/2013 Сб.рец. | B161: Каша вязкая молочная "Дружба" со слив.маслом | F161: 130 | H161: 3.96 | I161: 4.4 | J161: 25.14 | K161: 153.81
B162: Крупа рисовая | L162: 17 | M162: 60 | N162: =L162*M162/1000 -> 1.020
B163: Крупа пшено | L163: 10 | M163: 42 | N163: =L163*M163/1000 -> 0.420
B164: Молоко | L164: 55 | M164: 46 | N164: 2.530
B165: Сахар-песок | L165: 3 | M165: 60 | N165: 0.180
B166: Масло сливочное | L166: 3 | M166: 500 | N166: 1.500
B167: Соль | L167: 1 | M167: 10.3 | N167: 0.010
B168: Итого | N168: =SUM(N162:N167) -> 5.660
A169: 944/2013 Сб.рец. | B169: Чай с лимоном | F169: 200/7 | H169: 0.06 | I169: 0.01 | J169: 8.21 | K169: 34.38
B170: Чай высшего и 1-го сорта | L170: 1 | M170: 555 | N170: =(L170*M170)/1000 -> 0.555
B171: Лимон | L171: 7 | M171: 225 | N171: =(L171*M171)/1000 -> 1.575
B172: Сахар-песок | L172: 8 | M172: 60 | N172: 0.48
B173: Итого | N173: =SUM(N170:N172) -> 2.61
B174: Хлеб в/с | F174: 40 | H174: 3.04 | I174: 0.32 | J174: 19.68 | K174: 94 | L174: 40 | M174: 62 | N174: =(L174*M174)/1000 -> 2.480
B175: Итого за завтрак: | H175: =H161+H169+H174 -> 7.06 | I175: =I161+I169+I174 -> 4.73 | J175: 53.03 | K175: 282.19 | N175: =N168+N173+N174 -> 10.750
B176: Второй завтрак
A177: 124:154/2004 Сб.рец. | B177: Щи из свежей капусты с картофелем и с фрикадельками из индейки | F177: 250/35 | H177: 8.84 | I177: 7.08 | J177: 8.35 | K177: 131.73
B178: Капуста белокочанная | L178: 63 | M178: 55 | N178: =L178*M178/1000 -> 3.465
B179: Картофель | L179: 40 | M179: 55 | N179: =L179*M179/1000 -> 2.200
B180: Морковь | L180: 13 | M180: 50 | N180: 0.650
B181: Лук репчатый | L181: 12 | M181: 42 | N181: 0.504
B182: Масло подсолнечное | L182: 5 | M182: 157 | N182: 0.785
B183: Соль | L183: 1 | M183: 10.3 | N183: 0.010
B184: Итого | N184: =SUM(N178:N183) -> 7.614
B185: Фрикадельки из индейки
B186: Мясо индейки | L186: 40 | M186: 506 | N186: 20.240
B187: Лук репчатый | L187: 4 | M187: 42 | N187: 0.168
B188: Яйцо куриное | L188: 3 | M188: 300 | N188: 0.900
B189: Соль | L189: 1 | M189: 10.3 | N189: 0.010
B190: Итого | N190: =SUM(N186:N189) -> 21.318
A191: 943/2013 Сб.рец. | B191: Чай с медом | F191: 200 | H191: 0.06 | I191: 0 | J191: 6.42 | K191: 26.24
B192: Чай высшего и 1-го сорта | L192: 1 | M192: 555 | N192: =(L192*M192)/1000 -> 0.555
B193: Мед натуральный | L193: 8 | M193: 393 | N193: =(L193*M193)/1000 -> 3.144
B194: Итого | N194: =SUM(N192:N193) -> 3.699
B195: Хлеб р/ж | F195: 35 | H195: 1.15 | I195: 0.42 | J195: 16.76 | K195: 82.95 | L195: 35 | M195: 62 | N195: =(L195*M195)/1000 -> 2.170
B196: Итого за второй завтрак: | H196: =H177+H191+H195 -> 10.05 | I196: =I177+I191+I195 -> 7.5 | J196: 31.53 | K196: 240.92 | N196: =N184+N190+N194+N195 -> 34.802
B197: ИТОГО ЗА 5 ДЕНЬ: | H197: =H175+H196 -> 17.11 | I197: =I175+I196 -> 12.23 | J197: 84.56 | K197: 523.11 | N197: =N175+N196 -> 45.552
B198: 6-й день
B199: Завтрак
A200: 626/2013 Сб.рец. | B200: Запеканка картофельная с мясом | F200: 130 | H200: 10.62 | I200: 13.78 | J200: 22.9 | K200: 254.67
... 232 more rows

Sheet Лист1
